[Event "Late-Titled-Tuesday-Blitz-March-05-2024"]
[Site "Chess.com"]
[Date "2024.03.05"]
[Round "2"]
[White "Hrant_ChessMood"]
[Black "tolimachess"]
[Result "0-1"]
[WhiteElo "2984"]
[BlackElo "2436"]
[TimeControl "180+1"]
[EndTime "14:17:39 PST"]
[Termination "tolimachess won on time"]

1. e4 {[%clk 0:02:57.2]} 1... c5 {[%clk 0:02:58.1]} 2. Nf3 {[%clk 0:02:54.8]}
2... Nc6 {[%clk 0:02:57.6]} 3. Bb5 {[%clk 0:02:52.5]} 3... g6 {[%clk 0:02:50]}
4. O-O {[%clk 0:02:50.6]} 4... Bg7 {[%clk 0:02:49.8]} 5. Bxc6 {[%clk 0:02:48.6]}
5... bxc6 {[%clk 0:02:49.8]} 6. c3 {[%clk 0:02:46.6]} 6... Nf6 {[%clk
0:02:49.7]} 7. Re1 {[%clk 0:02:45.4]} 7... O-O {[%clk 0:02:49.1]} 8. h3 {[%clk
0:02:45.4]} 8... Rb8 {[%clk 0:02:47.8]} 9. d3 {[%clk 0:02:40.4]} 9... d6 {[%clk
0:02:45.6]} 10. c4 {[%clk 0:02:32.7]} 10... Nd7 {[%clk 0:02:38.4]} 11. Nc3
{[%clk 0:02:31.5]} 11... Qa5 {[%clk 0:02:35.9]} 12. Qc2 {[%clk 0:02:26.8]} 12...
Ne5 {[%clk 0:02:05]} 13. Nxe5 {[%clk 0:02:23.1]} 13... Bxe5 {[%clk 0:02:05.9]}
14. Bd2 {[%clk 0:02:22.5]} 14... Qb6 {[%clk 0:02:06.4]} 15. b3 {[%clk 0:02:21]}
15... f5 {[%clk 0:02:05.3]} 16. f4 {[%clk 0:02:15.5]} 16... Bd4+ {[%clk
0:02:05]} 17. Kh1 {[%clk 0:02:15.1]} 17... fxe4 {[%clk 0:02:04.1]} 18. dxe4
{[%clk 0:02:10.6]} 18... e5 {[%clk 0:02:04.4]} 19. fxe5 {[%clk 0:02:00.9]} 19...
Bxe5 {[%clk 0:02:05.3]} 20. Bh6 {[%clk 0:01:57.1]} 20... Rf7 {[%clk 0:01:58.4]}
21. Rf1 {[%clk 0:01:56.8]} 21... Rbb7 {[%clk 0:01:56.6]} 22. Rad1 {[%clk
0:01:49.4]} 22... Qd8 {[%clk 0:01:55.9]} 23. Be3 {[%clk 0:01:08.8]} 23... Qh4
{[%clk 0:01:53.4]} 24. Bf2 {[%clk 0:00:55.7]} 24... Qh5 {[%clk 0:01:51.1]} 25.
Qd3 {[%clk 0:00:38.7]} 25... Bg4 {[%clk 0:01:26.8]} 26. Rc1 {[%clk 0:00:22.9]}
26... Rf3 {[%clk 0:01:10.1]} 27. Be3 {[%clk 0:00:16.1]} 27... Rxh3+ {[%clk
0:01:02.5]} 28. Kg1 {[%clk 0:00:16.7]} 28... Rxe3 {[%clk 0:00:52.9]} 29. Qd2
{[%clk 0:00:01.8]} 29... Bd4 {[%clk 0:00:31.1]} 30. Rf2 {[%clk 0:00:01.9]} 30...
Rf7 {[%clk 0:00:29.6]} 31. Rcf1 {[%clk 0:00:01.8]} 31... Rxf2 {[%clk 0:00:29.8]}
32. Qxf2 {[%clk 0:00:01.3]} 32... Rxc3 {[%clk 0:00:28.4]} 0-1

[Event "Late-Titled-Tuesday-Blitz-March-05-2024"]
[Site "Chess.com"]
[Date "2024.03.05"]
[Round "2"]
[White "RantomOpening"]
[Black "Adham_Fawzy"]
[Result "1-0"]
[WhiteElo "2584"]
[BlackElo "2801"]
[TimeControl "180+1"]
[EndTime "14:17:42 PST"]
[Termination "RantomOpening won on time"]

1. c4 {[%clk 0:03:00.9]} 1... c5 {[%clk 0:02:56.3]} 2. Nf3 {[%clk 0:03:01.1]}
2... Nc6 {[%clk 0:02:56.9]} 3. Nc3 {[%clk 0:03:01]} 3... e5 {[%clk 0:02:57]} 4.
e3 {[%clk 0:03:00.1]} 4... Nf6 {[%clk 0:02:57.3]} 5. d4 {[%clk 0:03:00]} 5... e4
{[%clk 0:02:57.3]} 6. d5 {[%clk 0:02:53.6]} 6... exf3 {[%clk 0:02:58.2]} 7. dxc6
{[%clk 0:02:54]} 7... dxc6 {[%clk 0:02:57.7]} 8. Qxd8+ {[%clk 0:02:50.3]} 8...
Kxd8 {[%clk 0:02:58.6]} 9. gxf3 {[%clk 0:02:50.5]} 9... g6 {[%clk 0:02:59.3]}
10. b3 {[%clk 0:02:48.9]} 10... Bg7 {[%clk 0:02:59.9]} 11. Bb2 {[%clk
0:02:49.4]} 11... Ke7 {[%clk 0:03:00.5]} 12. O-O-O {[%clk 0:02:48]} 12... b6
{[%clk 0:03:01]} 13. Bg2 {[%clk 0:02:46.5]} 13... Be6 {[%clk 0:02:57.3]} 14. f4
{[%clk 0:02:46.4]} 14... Rac8 {[%clk 0:02:57.2]} 15. h3 {[%clk 0:02:45.8]} 15...
Rhd8 {[%clk 0:02:41.2]} 16. Rxd8 {[%clk 0:02:40.8]} 16... Kxd8 {[%clk
0:02:41.8]} 17. Rd1+ {[%clk 0:02:40.9]} 17... Ke7 {[%clk 0:02:42.3]} 18. Ne2
{[%clk 0:02:29.3]} 18... Ne8 {[%clk 0:02:35.4]} 19. Bxg7 {[%clk 0:02:28.1]}
19... Nxg7 {[%clk 0:02:36.3]} 20. e4 {[%clk 0:02:27.2]} 20... b5 {[%clk
0:02:23.8]} 21. cxb5 {[%clk 0:02:24]} 21... cxb5 {[%clk 0:02:24.7]} 22. Ng3
{[%clk 0:02:23.8]} 22... a5 {[%clk 0:01:50.3]} 23. Bf1 {[%clk 0:02:05]} 23... c4
{[%clk 0:01:48.7]} 24. bxc4 {[%clk 0:02:04.5]} 24... Bxc4 {[%clk 0:01:49.2]} 25.
Kb2 {[%clk 0:01:59.6]} 25... Ne6 {[%clk 0:01:40.4]} 26. f5 {[%clk 0:01:46.5]}
26... Nf4 {[%clk 0:01:35.1]} 27. fxg6 {[%clk 0:01:34.8]} 27... hxg6 {[%clk
0:01:32.2]} 28. Bxc4 {[%clk 0:01:28.5]} 28... Rxc4 {[%clk 0:01:33.1]} 29. h4
{[%clk 0:01:14.1]} 29... Rb4+ {[%clk 0:01:27.6]} 30. Kc3 {[%clk 0:01:11.6]}
30... Ra4 {[%clk 0:01:22.3]} 31. Kb3 {[%clk 0:01:10.4]} 31... Ne6 {[%clk
0:00:55.4]} 32. Rd5 {[%clk 0:01:09.2]} 32... Rc4 {[%clk 0:00:55.9]} 33. Rxb5
{[%clk 0:01:07.6]} 33... Rc1 {[%clk 0:00:36.7]} 34. Rxa5 {[%clk 0:01:07.5]}
34... Nd4+ {[%clk 0:00:36.8]} 35. Kb2 {[%clk 0:01:03.2]} 35... Rc2+ {[%clk
0:00:36.8]} 36. Kb1 {[%clk 0:01:02.7]} 36... Rxf2 {[%clk 0:00:36.4]} 37. Ra7+
{[%clk 0:01:00.4]} 37... Ke6 {[%clk 0:00:36.4]} 38. h5 {[%clk 0:00:48.6]} 38...
Ke5 {[%clk 0:00:20.4]} 39. h6 {[%clk 0:00:44.1]} 39... f6 {[%clk 0:00:12.4]} 40.
h7 {[%clk 0:00:38.4]} 40... Rh2 {[%clk 0:00:12.4]} 41. Ra5+ {[%clk 0:00:39]}
41... Kf4 {[%clk 0:00:04.4]} 42. Nh5+ {[%clk 0:00:38.5]} 42... Ke3 {[%clk
0:00:02.9]} 43. h8=Q {[%clk 0:00:37]} 1-0

[Event "Late-Titled-Tuesday-Blitz-March-05-2024"]
[Site "Chess.com"]
[Date "2024.03.05"]
[Round "2"]
[White "Alexei_Gubajdullin"]
[Black "SharathRk6"]
[Result "1-0"]
[WhiteElo "2636"]
[BlackElo "2386"]
[TimeControl "180+1"]
[EndTime "14:17:43 PST"]
[Termination "Alexei_Gubajdullin won by resignation"]

1. Nf3 {[%clk 0:03:00.9]} 1... Nf6 {[%clk 0:02:59.8]} 2. g3 {[%clk 0:03:00.5]}
2... g6 {[%clk 0:03:00.3]} 3. Bg2 {[%clk 0:03:00.9]} 3... Bg7 {[%clk 0:03:00.9]}
4. O-O {[%clk 0:03:01.3]} 4... O-O {[%clk 0:03:01.6]} 5. d3 {[%clk 0:03:01.7]}
5... d5 {[%clk 0:03:01.6]} 6. Nbd2 {[%clk 0:03:01.9]} 6... Nbd7 {[%clk
0:03:00.9]} 7. e4 {[%clk 0:02:53.3]} 7... c6 {[%clk 0:02:58]} 8. Qe2 {[%clk
0:02:50]} 8... e6 {[%clk 0:02:53.8]} 9. Re1 {[%clk 0:02:49.8]} 9... b6 {[%clk
0:02:52.5]} 10. Nf1 {[%clk 0:02:47.6]} 10... Bb7 {[%clk 0:02:52.4]} 11. e5
{[%clk 0:02:47.9]} 11... Ne8 {[%clk 0:02:51.9]} 12. h4 {[%clk 0:02:47.2]} 12...
c5 {[%clk 0:02:52.1]} 13. h5 {[%clk 0:02:46.8]} 13... d4 {[%clk 0:02:52.6]} 14.
N1h2 {[%clk 0:02:38.8]} 14... Qc7 {[%clk 0:02:51.1]} 15. Bf4 {[%clk 0:02:37.5]}
15... Qd8 {[%clk 0:02:42.2]} 16. Ng4 {[%clk 0:02:36.2]} 16... Nc7 {[%clk
0:02:40.7]} 17. Bg5 {[%clk 0:02:31]} 17... Qc8 {[%clk 0:02:35.5]} 18. Bf6 {[%clk
0:02:24.3]} 18... Nd5 {[%clk 0:02:28.7]} 19. Bxg7 {[%clk 0:02:21]} 19... Kxg7
{[%clk 0:02:28]} 20. Qd2 {[%clk 0:02:21.2]} 20... Rh8 {[%clk 0:01:29.4]} 21.
Qh6+ {[%clk 0:02:00.6]} 21... Kg8 {[%clk 0:01:28.9]} 22. Ng5 {[%clk 0:02:00.4]}
22... Qf8 {[%clk 0:01:24.3]} 23. c4 {[%clk 0:01:59.8]} 23... dxc3 {[%clk
0:01:12.1]} 24. bxc3 {[%clk 0:02:00.7]} 24... Rb8 {[%clk 0:00:59.4]} 25. c4
{[%clk 0:01:43.9]} 25... Nb4 {[%clk 0:00:58.3]} 26. Bxb7 {[%clk 0:01:33]} 26...
Rxb7 {[%clk 0:00:57.6]} 27. Rad1 {[%clk 0:01:29.2]} 27... Nc2 {[%clk 0:00:54.1]}
28. Re4 {[%clk 0:01:26.6]} 28... Nd4 {[%clk 0:00:53.4]} 29. Kg2 {[%clk
0:01:24.8]} 29... b5 {[%clk 0:00:29]} 30. Rf4 {[%clk 0:01:23.4]} 30... Qxh6
{[%clk 0:00:23]} 31. Nxh6+ {[%clk 0:01:22.9]} 31... Kg7 {[%clk 0:00:23.7]} 32.
Nhxf7 {[%clk 0:01:18]} 32... Rf8 {[%clk 0:00:23.4]} 33. h6+ {[%clk 0:01:15]}
33... Kg8 {[%clk 0:00:22.5]} 34. Nd6 {[%clk 0:01:13.9]} 34... Rxf4 {[%clk
0:00:21.2]} 35. Nxb7 {[%clk 0:01:09.6]} 35... Rf5 {[%clk 0:00:20.2]} 36. Ne4
{[%clk 0:01:02.3]} 36... Nxe5 {[%clk 0:00:20.7]} 37. Nbxc5 {[%clk 0:01:00.7]}
37... Ng4 {[%clk 0:00:21.2]} 38. cxb5 {[%clk 0:00:58.3]} 38... Nxb5 {[%clk
0:00:18.7]} 39. Nxe6 {[%clk 0:00:56.7]} 39... Kf7 {[%clk 0:00:17.1]} 40. N6g5+
{[%clk 0:00:56.4]} 40... Kg8 {[%clk 0:00:17]} 41. Rc1 {[%clk 0:00:56.6]} 41...
Rf8 {[%clk 0:00:12.4]} 42. Rc5 {[%clk 0:00:53.6]} 42... Nd4 {[%clk 0:00:12.5]}
43. Rc7 {[%clk 0:00:53.4]} 43... Nf5 {[%clk 0:00:11]} 44. Nxh7 {[%clk
0:00:49.6]} 44... Rf7 {[%clk 0:00:07.6]} 45. Rc8+ {[%clk 0:00:44.8]} 45... Kxh7
{[%clk 0:00:06.2]} 46. Ng5+ {[%clk 0:00:45.7]} 46... Kxh6 {[%clk 0:00:06.8]} 47.
Nxf7+ {[%clk 0:00:46]} 47... Kg7 {[%clk 0:00:07.7]} 48. Rc7 {[%clk 0:00:45.5]}
48... Kf6 {[%clk 0:00:07.4]} 49. Rxa7 {[%clk 0:00:45.4]} 49... Nxf2 {[%clk
0:00:06.4]} 50. Kxf2 {[%clk 0:00:44.6]} 1-0

[Event "Late-Titled-Tuesday-Blitz-March-05-2024"]
[Site "Chess.com"]
[Date "2024.03.05"]
[Round "2"]
[White "Willhaven3"]
[Black "Polish_fighter3000"]
[Result "0-1"]
[WhiteElo "2650"]
[BlackElo "3106"]
[TimeControl "180+1"]
[EndTime "14:17:45 PST"]
[Termination "Polish_fighter3000 won by resignation"]

1. d4 {[%clk 0:03:00.9]} 1... Nf6 {[%clk 0:02:58.7]} 2. Nf3 {[%clk 0:03:01.3]}
2... g6 {[%clk 0:02:59.1]} 3. c4 {[%clk 0:03:00.7]} 3... Bg7 {[%clk 0:02:59.3]}
4. Nc3 {[%clk 0:03:01.3]} 4... O-O {[%clk 0:02:59.4]} 5. e4 {[%clk 0:03:01.5]}
5... d6 {[%clk 0:03:00.1]} 6. Be2 {[%clk 0:03:02]} 6... Nbd7 {[%clk 0:02:56.5]}
7. Be3 {[%clk 0:03:01.3]} 7... e5 {[%clk 0:02:55.6]} 8. Qc2 {[%clk 0:02:59.8]}
8... c6 {[%clk 0:02:51.3]} 9. Rd1 {[%clk 0:02:59.2]} 9... exd4 {[%clk 0:02:45]}
10. Nxd4 {[%clk 0:02:58.3]} 10... Re8 {[%clk 0:02:45.2]} 11. O-O {[%clk
0:02:51]} 11... Qe7 {[%clk 0:02:45.3]} 12. Nb3 {[%clk 0:02:34.1]} 12... a5
{[%clk 0:02:23.1]} 13. a4 {[%clk 0:02:29.5]} 13... Ne5 {[%clk 0:01:13.5]} 14.
Bg5 {[%clk 0:02:12]} 14... h6 {[%clk 0:01:12.8]} 15. Bh4 {[%clk 0:02:11.9]}
15... g5 {[%clk 0:01:13.1]} 16. Bg3 {[%clk 0:02:12]} 16... Nfd7 {[%clk
0:00:53.3]} 17. Nd4 {[%clk 0:02:01.6]} 17... Nc5 {[%clk 0:00:51.3]} 18. Rfe1
{[%clk 0:01:54.5]} 18... Bd7 {[%clk 0:00:50.4]} 19. Bf1 {[%clk 0:01:52.6]} 19...
Rad8 {[%clk 0:00:50.1]} 20. f3 {[%clk 0:01:46.6]} 20... h5 {[%clk 0:00:49.5]}
21. Bf2 {[%clk 0:01:45.8]} 21... h4 {[%clk 0:00:49.7]} 22. h3 {[%clk 0:01:45.5]}
22... Ng6 {[%clk 0:00:38]} 23. Nf5 {[%clk 0:01:37.2]} 23... Bxf5 {[%clk
0:00:38.5]} 24. exf5 {[%clk 0:01:37.6]} 24... Ne5 {[%clk 0:00:39.1]} 25. Ne4
{[%clk 0:01:27.4]} 25... Nxe4 {[%clk 0:00:35.9]} 26. Rxe4 {[%clk 0:01:26.8]}
26... Bf6 {[%clk 0:00:18.2]} 27. Bb6 {[%clk 0:01:10.6]} 27... Ra8 {[%clk
0:00:12.8]} 28. Qd2 {[%clk 0:01:06.6]} 28... Kg7 {[%clk 0:00:09.5]} 29. Bxa5
{[%clk 0:01:00.8]} 29... d5 {[%clk 0:00:06.8]} 30. cxd5 {[%clk 0:00:57.7]} 30...
Qc5+ {[%clk 0:00:06.7]} 31. Kh1 {[%clk 0:00:52]} 31... Qxa5 {[%clk 0:00:07]} 32.
b4 {[%clk 0:00:52]} 32... Qxa4 {[%clk 0:00:05]} 33. f4 {[%clk 0:00:50.2]} 33...
gxf4 {[%clk 0:00:03.8]} 34. Rde1 {[%clk 0:00:47.7]} 34... Rad8 {[%clk
0:00:03.4]} 35. Qxf4 {[%clk 0:00:47.3]} 35... Rxd5 {[%clk 0:00:03.7]} 36. Rxe5
{[%clk 0:00:46.8]} 36... Rdxe5 {[%clk 0:00:02.2]} 37. Rxe5 {[%clk 0:00:47.7]}
37... Rxe5 {[%clk 0:00:02.2]} 38. Qg4+ {[%clk 0:00:47.7]} 38... Kf8 {[%clk
0:00:02.4]} 39. Qd4 {[%clk 0:00:46.2]} 39... Qc2 {[%clk 0:00:02.5]} 40. Qd6+
{[%clk 0:00:45.3]} 40... Kg7 {[%clk 0:00:02.4]} 41. Qd4 {[%clk 0:00:43.7]} 41...
Qc1 {[%clk 0:00:02.7]} 42. Qg4+ {[%clk 0:00:43.1]} 42... Qg5 {[%clk 0:00:03.4]}
43. Qf3 {[%clk 0:00:43.3]} 43... Rxf5 {[%clk 0:00:03.8]} 44. Qd3 {[%clk
0:00:43.6]} 44... Qf4 {[%clk 0:00:04.1]} 45. Be2 {[%clk 0:00:43.3]} 45... Rd5
{[%clk 0:00:04.4]} 0-1

[Event "Late-Titled-Tuesday-Blitz-March-05-2024"]
[Site "Chess.com"]
[Date "2024.03.05"]
[Round "2"]
[White "karinachess1"]
[Black "Zhigalko_Sergei"]
[Result "0-1"]
[WhiteElo "2593"]
[BlackElo "2896"]
[TimeControl "180+1"]
[EndTime "14:17:47 PST"]
[Termination "Zhigalko_Sergei won by resignation"]

1. d4 {[%clk 0:03:00.9]} 1... Nf6 {[%clk 0:02:59.9]} 2. c4 {[%clk 0:03:00.9]}
2... e6 {[%clk 0:03:00.1]} 3. Nc3 {[%clk 0:03:00.7]} 3... Bb4 {[%clk 0:02:57.1]}
4. a3 {[%clk 0:03:01]} 4... Bxc3+ {[%clk 0:02:57]} 5. bxc3 {[%clk 0:03:01.9]}
5... O-O {[%clk 0:02:55.3]} 6. f3 {[%clk 0:03:02]} 6... c5 {[%clk 0:02:49.9]} 7.
e4 {[%clk 0:02:54.3]} 7... Nc6 {[%clk 0:02:48.9]} 8. Ne2 {[%clk 0:02:16.2]} 8...
d6 {[%clk 0:02:22.6]} 9. Bg5 {[%clk 0:02:08.8]} 9... e5 {[%clk 0:02:14]} 10. d5
{[%clk 0:02:01.4]} 10... Na5 {[%clk 0:02:12.6]} 11. Nc1 {[%clk 0:02:01.3]} 11...
b6 {[%clk 0:02:02.9]} 12. Nb3 {[%clk 0:01:59.9]} 12... Nxb3 {[%clk 0:01:52.5]}
13. Qxb3 {[%clk 0:02:00.8]} 13... Bd7 {[%clk 0:01:51.6]} 14. Bd3 {[%clk
0:01:56.8]} 14... Rb8 {[%clk 0:01:47.7]} 15. O-O {[%clk 0:01:55.6]} 15... h6
{[%clk 0:01:46.4]} 16. Bh4 {[%clk 0:01:55.5]} 16... g5 {[%clk 0:01:40]} 17. Bf2
{[%clk 0:01:54.7]} 17... Nh5 {[%clk 0:01:39.1]} 18. Rfe1 {[%clk 0:01:46]} 18...
Nf4 {[%clk 0:01:33.3]} 19. Bf1 {[%clk 0:01:46.1]} 19... f5 {[%clk 0:01:33.8]}
20. g3 {[%clk 0:01:39.2]} 20... Ng6 {[%clk 0:01:30]} 21. exf5 {[%clk 0:01:38.3]}
21... Bxf5 {[%clk 0:01:28.5]} 22. a4 {[%clk 0:01:26.4]} 22... a5 {[%clk
0:01:27.4]} 23. Qd1 {[%clk 0:01:18.5]} 23... Qf6 {[%clk 0:01:24.5]} 24. Bg2
{[%clk 0:01:00.7]} 24... Rf7 {[%clk 0:01:20.6]} 25. Qd2 {[%clk 0:01:00.6]} 25...
Rbf8 {[%clk 0:01:16]} 26. Ra2 {[%clk 0:00:56.9]} 26... Ne7 {[%clk 0:01:11.2]}
27. Rb2 {[%clk 0:00:55.2]} 27... Nc8 {[%clk 0:01:11.6]} 28. Be3 {[%clk
0:00:53.5]} 28... Qg6 {[%clk 0:01:07.8]} 29. Rf1 {[%clk 0:00:51.5]} 29... Bd3
{[%clk 0:01:04.5]} 30. Rf2 {[%clk 0:00:37.2]} 30... Bxc4 {[%clk 0:01:04.5]} 31.
Qd1 {[%clk 0:00:30.4]} 31... Qf5 {[%clk 0:00:55.8]} 32. Rbd2 {[%clk 0:00:17.3]}
32... Ne7 {[%clk 0:00:54.8]} 33. Qc1 {[%clk 0:00:12.6]} 33... Nxd5 {[%clk
0:00:52.2]} 34. Rb2 {[%clk 0:00:10.7]} 34... Qd7 {[%clk 0:00:42.1]} 35. Bd2
{[%clk 0:00:10.1]} 35... Qxa4 {[%clk 0:00:41.2]} 36. Be1 {[%clk 0:00:10.3]}
36... Qd7 {[%clk 0:00:39]} 37. Rbd2 {[%clk 0:00:08]} 37... Qe6 {[%clk
0:00:37.2]} 38. Rd1 {[%clk 0:00:06.2]} 38... b5 {[%clk 0:00:35.9]} 39. Qd2
{[%clk 0:00:06.4]} 39... a4 {[%clk 0:00:35.8]} 40. f4 {[%clk 0:00:06.4]} 40...
e4 {[%clk 0:00:28.3]} 41. Qc2 {[%clk 0:00:06.7]} 41... Ne3 {[%clk 0:00:27.6]}
0-1

[Event "Late-Titled-Tuesday-Blitz-March-05-2024"]
[Site "Chess.com"]
[Date "2024.03.05"]
[Round "2"]
[White "GMAkobianSTL"]
[Black "chucksterf10"]
[Result "1-0"]
[WhiteElo "2820"]
[BlackElo "2570"]
[TimeControl "180+1"]
[EndTime "14:17:49 PST"]
[Termination "GMAkobianSTL won by resignation"]

1. d4 {[%clk 0:03:00.9]} 1... d5 {[%clk 0:02:59]} 2. c4 {[%clk 0:03:00.5]} 2...
dxc4 {[%clk 0:02:58.2]} 3. e3 {[%clk 0:02:59]} 3... e5 {[%clk 0:02:57]} 4. Bxc4
{[%clk 0:02:57.8]} 4... exd4 {[%clk 0:02:57.4]} 5. exd4 {[%clk 0:02:53.5]} 5...
Nf6 {[%clk 0:02:56]} 6. Qb3 {[%clk 0:02:50]} 6... Qd7 {[%clk 0:02:34.6]} 7. Nf3
{[%clk 0:02:46.1]} 7... Nc6 {[%clk 0:02:34.8]} 8. O-O {[%clk 0:02:34.9]} 8...
Bd6 {[%clk 0:02:11.2]} 9. Re1+ {[%clk 0:02:30.7]} 9... Kf8 {[%clk 0:02:11.6]}
10. Bd2 {[%clk 0:02:09]} 10... h6 {[%clk 0:02:07.5]} 11. Ne5 {[%clk 0:02:01.3]}
11... Bxe5 {[%clk 0:02:04.1]} 12. dxe5 {[%clk 0:02:01.4]} 12... Ne8 {[%clk
0:01:58.9]} 13. Bc3 {[%clk 0:01:42.6]} 13... Qe7 {[%clk 0:01:46.6]} 14. Nd2
{[%clk 0:01:41.5]} 14... b6 {[%clk 0:01:37.2]} 15. e6 {[%clk 0:01:41.3]} 15...
f6 {[%clk 0:01:20]} 16. Bd5 {[%clk 0:01:39.7]} 16... Bb7 {[%clk 0:01:20]} 17.
Nf3 {[%clk 0:01:38.6]} 17... Nd6 {[%clk 0:01:16.7]} 18. Nh4 {[%clk 0:01:31]}
18... Kg8 {[%clk 0:01:02.6]} 19. Ng6 {[%clk 0:01:29.2]} 19... Qe8 {[%clk
0:01:03.2]} 20. Nxh8 {[%clk 0:01:12.9]} 20... Kxh8 {[%clk 0:01:04.1]} 21. Rad1
{[%clk 0:01:12.3]} 21... Qe7 {[%clk 0:00:57.1]} 22. Qa4 {[%clk 0:01:11.1]} 22...
b5 {[%clk 0:00:49.9]} 23. Qf4 {[%clk 0:01:10.6]} 23... a5 {[%clk 0:00:43.6]} 24.
a3 {[%clk 0:01:05.6]} 24... Rf8 {[%clk 0:00:41.9]} 25. Bxc6 {[%clk 0:01:02.1]}
25... Bxc6 {[%clk 0:00:42.4]} 26. Bxa5 {[%clk 0:01:02.2]} 26... g5 {[%clk
0:00:31.4]} 27. Qc1 {[%clk 0:00:52.5]} 27... Ba8 {[%clk 0:00:17.5]} 28. Qxc7
{[%clk 0:00:51.1]} 28... Qxc7 {[%clk 0:00:17.8]} 29. Bxc7 {[%clk 0:00:50.9]}
29... Ne8 {[%clk 0:00:18]} 30. e7 {[%clk 0:00:49.4]} 30... Rg8 {[%clk 0:00:17]}
31. Bb6 {[%clk 0:00:47.3]} 31... Kg7 {[%clk 0:00:16.6]} 32. Rd8 {[%clk
0:00:45.3]} 32... Bc6 {[%clk 0:00:16.8]} 33. Rc1 {[%clk 0:00:44.2]} 33... Be4
{[%clk 0:00:16.2]} 34. f3 {[%clk 0:00:44.1]} 34... Bg6 {[%clk 0:00:15.7]} 35. b3
{[%clk 0:00:43.5]} 35... Kf7 {[%clk 0:00:15.2]} 36. Bc5 {[%clk 0:00:42.6]} 36...
Ke6 {[%clk 0:00:15.5]} 37. a4 {[%clk 0:00:42.4]} 37... bxa4 {[%clk 0:00:14.7]}
38. bxa4 {[%clk 0:00:42.6]} 38... h5 {[%clk 0:00:14.5]} 39. a5 {[%clk
0:00:42.3]} 39... Kf7 {[%clk 0:00:11.7]} 40. a6 {[%clk 0:00:42.2]} 40... Nc7
{[%clk 0:00:12.4]} 41. Rf8+ {[%clk 0:00:41.9]} 41... Kg7 {[%clk 0:00:11.3]} 42.
a7 {[%clk 0:00:41.5]} 42... g4 {[%clk 0:00:06.1]} 43. fxg4 {[%clk 0:00:41.1]}
43... Be4 {[%clk 0:00:05.5]} 44. Rxg8+ {[%clk 0:00:39.9]} 44... Kxg8 {[%clk
0:00:06.4]} 45. gxh5 {[%clk 0:00:39.9]} 45... Kf7 {[%clk 0:00:04.6]} 46. h6
{[%clk 0:00:39.7]} 46... Ne6 {[%clk 0:00:02.8]} 47. Re1 {[%clk 0:00:37.7]} 47...
Bd5 {[%clk 0:00:02.2]} 48. Rxe6 {[%clk 0:00:37.1]} 48... Bxe6 {[%clk 0:00:02.3]}
49. a8=Q {[%clk 0:00:36.9]} 1-0

[Event "Late-Titled-Tuesday-Blitz-March-05-2024"]
[Site "Chess.com"]
[Date "2024.03.05"]
[Round "2"]
[White "GiorgianBarbosa"]
[Black "dimoni64"]
[Result "1-0"]
[WhiteElo "2423"]
[BlackElo "1951"]
[TimeControl "180+1"]
[EndTime "14:17:49 PST"]
[Termination "GiorgianBarbosa won by checkmate"]

1. d4 {[%clk 0:02:56.4]} 1... d5 {[%clk 0:02:59]} 2. Nc3 {[%clk 0:02:57.3]} 2...
Nf6 {[%clk 0:02:57.3]} 3. Bf4 {[%clk 0:02:58.2]} 3... c6 {[%clk 0:02:51.9]} 4.
e3 {[%clk 0:02:59.1]} 4... g6 {[%clk 0:02:50.8]} 5. Bd3 {[%clk 0:02:58]} 5...
Bg7 {[%clk 0:02:50.6]} 6. Nge2 {[%clk 0:02:57.4]} 6... O-O {[%clk 0:02:50.1]} 7.
h4 {[%clk 0:02:57.3]} 7... h5 {[%clk 0:02:48.5]} 8. Be5 {[%clk 0:02:53.4]} 8...
Nbd7 {[%clk 0:02:44.2]} 9. Nf4 {[%clk 0:02:53.5]} 9... Nxe5 {[%clk 0:02:40.5]}
10. dxe5 {[%clk 0:02:53.7]} 10... Ng4 {[%clk 0:02:39.9]} 11. e6 {[%clk
0:02:52.3]} 11... Qd6 {[%clk 0:02:12.3]} 12. exf7+ {[%clk 0:02:47.2]} 12... Rxf7
{[%clk 0:02:09.6]} 13. O-O {[%clk 0:01:57.6]} 13... e5 {[%clk 0:02:04.8]} 14.
Nh3 {[%clk 0:01:54.9]} 14... e4 {[%clk 0:02:03.9]} 15. Nf4 {[%clk 0:01:50.5]}
15... exd3 {[%clk 0:02:02.5]} 16. cxd3 {[%clk 0:01:50.6]} 16... d4 {[%clk
0:01:54.2]} 17. Ne4 {[%clk 0:01:49.8]} 17... Qe5 {[%clk 0:01:43.6]} 18. Qb3
{[%clk 0:01:45]} 18... Bf6 {[%clk 0:00:52.4]} 19. g3 {[%clk 0:01:35.3]} 19...
Kg7 {[%clk 0:00:51.9]} 20. Rae1 {[%clk 0:01:27.1]} 20... dxe3 {[%clk 0:00:51.2]}
21. fxe3 {[%clk 0:01:28]} 21... b6 {[%clk 0:00:44]} 22. Re2 {[%clk 0:01:17.2]}
22... Ba6 {[%clk 0:00:40.7]} 23. Ne6+ {[%clk 0:01:13.8]} 23... Kh8 {[%clk
0:00:35.2]} 24. N6g5 {[%clk 0:01:05.3]} 24... Bxd3 {[%clk 0:00:34.3]} 25. Nxf7+
{[%clk 0:01:03.9]} 25... Kg7 {[%clk 0:00:34.1]} 26. Nxe5 {[%clk 0:01:04.3]}
26... Bxe5 {[%clk 0:00:33.9]} 27. Qf7+ {[%clk 0:01:02.2]} 27... Kh6 {[%clk
0:00:33.7]} 28. Ng5 {[%clk 0:01:02]} 28... Rh8 {[%clk 0:00:28.5]} 29. Rf6 {[%clk
0:00:45.5]} 29... Bxf6 {[%clk 0:00:25]} 30. Rd2 {[%clk 0:00:43]} 30... Bf5
{[%clk 0:00:20.1]} 31. Rd6 {[%clk 0:00:37.3]} 31... Bxg5 {[%clk 0:00:19.7]} 32.
hxg5+ {[%clk 0:00:24]} 32... Kxg5 {[%clk 0:00:19.5]} 33. Qe7+ {[%clk 0:00:22.9]}
33... Kh6 {[%clk 0:00:18.3]} 34. e4 {[%clk 0:00:23.1]} 34... Bc8 {[%clk
0:00:15.5]} 35. Rxc6 {[%clk 0:00:20.4]} 35... h4 {[%clk 0:00:12.2]} 36. Qxh4+
{[%clk 0:00:19.7]} 36... Kg7 {[%clk 0:00:11.5]} 37. Rc7+ {[%clk 0:00:20]} 37...
Kf8 {[%clk 0:00:05.5]} 38. Qxh8# {[%clk 0:00:18.5]} 1-0